bitfinex/quotes_ETHUSD_20240828
["timestamp","ask_amount","ask_price","bid_price","bid_amount"]
[1724846286327,4.03360785,2528.7,2528.1,6.32347001]
[1724846286884,8.18056964,2528.9,2528.2,6.24427]
[1724846287127,3.95415,2529.0,2528.4,3.95495]
[1724846287325,3.95412,2529.1,2528.4,3.95495]
[1724846287621,4.03319785,2529.0,2528.4,3.95495]
[1724846287781,4.03319785,2529.0,2528.5,2.2889]
[1724846288413,0.07895785,2529.0,2528.5,6.32285905]
[1724846288723,0.07895785,2529.0,2528.5,2.36798905]
[1724846289184,3.95431,2528.9,2528.5,2.36798905]
[1724846289381,3.95431,2528.9,2528.5,2.2889]
[1724846289581,0.07895785,2528.8,2528.5,2.2889]
[1724846289811,3.95461,2528.7,2528.5,2.2889]
[1724846290403,3.95491,2528.6,2528.1,2.2889]
[1724846290619,3.95491,2528.6,2528.3,2.2889]
[1724846290919,7.98775785,2528.9,2528.3,2.2889]
[1724846291084,4.03333785,2528.9,2528.4,2.2889]
[1724846291284,4.03333785,2528.9,2528.6,1.0]
[1724846291521,4.03332785,2528.9,2528.6,1.0]
[1724846292023,3.95437,2528.9,2528.6,1.0]
[1724846292226,4.03302785,2529.1,2528.7,2.2889]
[1724846292383,3.95423,2529.0,2528.7,2.2889]
[1724846292582,3.95431,2528.9,2528.7,2.2889]
[1724846294038,7.9087,2528.9,2528.7,2.2889]
[1724846294546,3.95431,2528.9,2528.7,2.2889]
[1724846294904,7.90869,2528.9,2528.7,2.2889]
[1724846295215,7.90869,2528.9,2528.8,0.10704362]
[1724846295931,3.95431,2528.9,2528.8,0.10704362]
[1724846299723,3.95414,2529.0,2528.8,0.10704362]
[1724846299912,3.95428,2528.9,2528.8,0.10704362]
[1724846300107,3.95414,2529.0,2528.8,0.10704362]
[1724846300312,3.95387,2529.2,2528.8,0.52572437]
[1724846300572,3.9536,2529.4,2528.9,2.3476]
[1724846300697,3.9536,2529.4,2529.0,0.07907472]
[1724846301098,3.9536,2529.4,2529.1,2.44751009]
[1724846302246,12.13285964,2529.6,2529.1,2.44751009]
[1724846302449,8.17950964,2529.6,2529.1,2.44751009]
[1724846302605,3.95351,2529.4,2529.1,2.44751009]
[1724846303254,12.13334964,2529.4,2529.1,2.44751009]
[1724846303746,12.13336964,2529.4,2529.1,2.44751009]
[1724846304351,12.13187342,2529.4,2529.1,2.44751009]
[1724846304563,12.13184342,2529.4,2529.1,2.44751009]
[1724846305155,8.17824342,2529.4,2529.1,2.44751009]
[1724846305449,12.13186342,2529.4,2529.1,2.44751009]
[1724846305981,8.17824342,2529.4,2529.1,2.44751009]
[1724846306282,12.13185342,2529.4,2529.1,2.44751009]
[1724846306637,8.17824342,2529.4,2529.1,2.44751009]
[1724846307077,7.90661,2529.6,2529.1,6.40147009]
[1724846307278,3.9533,2529.6,2529.1,6.40147009]
[1724846307790,7.9066,2529.6,2529.2,0.07906939]
[1724846308096,7.9066,2529.6,2529.3,0.09636027]
[1724846308282,7.90661,2529.6,2529.3,0.09636027]
[1724846308451,7.90661,2529.6,2529.1,6.38062799]
[1724846308655,3.9533,2529.6,2529.2,0.09636268]
[1724846310453,7.90659,2529.6,2529.2,0.09636268]
[1724846310787,6.95297,2529.8,2529.4,2.3476]
[1724846311195,6.95297,2529.8,2529.5,0.09635546]
[1724846311362,8.17919964,2529.8,2529.5,0.09635546]
[1724846311570,3.95268,2530.0,2529.5,4.04968546]
[1724846311757,3.95268,2530.0,2529.5,4.03230827]
[1724846312174,3.95268,2530.0,2529.7,2.3476]
[1724846312483,3.95265,2530.0,2529.8,0.09512573]
[1724846312819,3.95265,2530.0,2529.7,2.3476]
[1724846313380,8.17826964,2530.4,2529.8,4.12704661]
[1724846313576,8.17826964,2530.4,2529.9,6.30031]
[1724846313813,8.17826964,2530.4,2529.9,2.42664459]
[1724846314125,8.17826964,2530.4,2530.0,0.09486515]
[1724846315418,3.95226,2530.2,2530.0,0.09486515]
[1724846316596,3.9521,2530.3,2530.0,0.09486515]
[1724846316983,3.89965478,2530.3,2530.0,0.09486515]
[1724846317180,3.95225,2530.2,2530.0,0.09486515]
[1724846318233,3.95218,2530.3,2530.0,0.09486515]
[1724846321351,3.95228,2530.2,2530.0,0.09486515]
[1724846322057,7.90462,2530.2,2530.0,0.09486515]
[1724846322215,3.95228,2530.2,2530.0,0.09486515]
[1724846324968,4.03136785,2530.1,2530.0,0.09486515]
[1724846325256,15.07435264,2530.1,2530.0,0.09486515]
[1724846325641,3.95319,2529.6,2529.5,7.37]
[1724846325956,3.9535,2529.4,2529.3,0.396]
[1724846326521,3.9533,2529.6,2529.3,0.396]
[1724846326719,3.9533,2529.6,2529.2,0.396]
[1724846326922,7.90664,2529.6,2529.2,0.396]
[1724846327431,3.9533,2529.6,2529.2,0.396]
[1724846327857,7.90662,2529.6,2529.2,0.396]
[1724846328260,3.9533,2529.6,2529.1,6.30147]
[1724846328433,3.9533,2529.6,2529.1,10.25536]
[1724846328755,3.95328,2529.6,2529.1,6.30147]
[1724846329155,7.90656,2529.6,2529.1,6.30147]
[1724846329530,3.95328,2529.6,2529.2,2.3476]
[1724846330121,7.90656,2529.6,2529.2,2.3476]
[1724846330666,3.95336,2529.5,2529.2,2.3476]
[1724846331030,3.95328,2529.6,2529.2,2.3476]
[1724846332655,3.95328,2529.6,2529.2,6.30141]
[1724846333037,3.95328,2529.6,2529.2,2.3476]
[1724846334039,1.75959256,2529.6,2529.2,3.95371]
[1724846334409,1.75959256,2529.8,2529.4,3.95342]
[1724846335037,1.75959256,2530.0,2529.5,0.07906122]
[1724846335248,1.75959256,2530.0,2529.6,6.42559]
[1724846336128,3.95242,2530.1,2529.6,6.42559]
[1724846337452,3.95242,2530.1,2529.6,2.4725]
[1724846337453,8.17403194,2530.1,2529.6,2.4725]
[1724846337664,3.95275,2529.9,2529.6,2.4725]
[1724846338196,7.90555,2529.9,2529.6,2.4725]
[1724846338401,3.95275,2529.9,2529.6,2.4725]
[1724846339614,7.90557,2529.9,2529.6,2.4725]
[1724846340105,3.95303,2529.7,2529.4,2.4725]
[1724846340262,3.95303,2529.7,2529.5,0.07597875]
[1724846340263,3.95326,2529.6,2529.5,0.07597875]
[1724846341105,3.95326,2529.6,2529.2,2.4725]
[1724846341508,3.95326,2529.6,2529.3,0.07598356]
[1724846341709,3.95326,2529.6,2529.2,2.4725]
[1724846342007,3.95337,2529.5,2529.3,0.07598356]
[1724846342365,3.95337,2529.5,2529.2,2.4725]
[1724846342586,3.95337,2529.5,2529.4,0.07598115]
[1724846342766,3.95337,2529.5,2529.3,0.07345591]
[1724846342968,3.95337,2529.5,2529.4,0.0734535]
[1724846343207,7.90674,2529.5,2529.4,0.0734535]
[1724846343389,3.95363,2529.4,2529.0,2.8685]
[1724846343699,3.95384,2529.2,2529.0,2.8685]
[1724846344010,3.95384,2529.2,2529.0,0.396]
[1724846344366,3.95366,2529.3,2529.0,0.396]
[1724846345507,7.90742,2529.3,2529.0,0.396]
[1724846346264,3.95366,2529.3,2528.9,7.37]
[1724846346667,3.95366,2529.3,2528.8,6.42683]
[1724846346875,3.95366,2529.3,2528.8,10.38119]
[1724846347388,3.95366,2529.3,2528.8,6.42683]
[1724846347803,3.95383,2529.2,2528.8,6.42683]
[1724846348385,3.95366,2529.3,2528.8,6.42683]
[1724846348386,3.954,2529.1,2528.8,2.4725]
[1724846348582,7.90807,2529.1,2528.8,2.4725]
[1724846348790,3.954,2529.1,2528.8,2.4725]
[1724846348987,7.90805,2529.1,2528.8,2.4725]
[1724846349184,3.954,2529.1,2528.8,2.4725]
[1724846349604,7.90758,2529.3,2528.8,2.4725]
[1724846349992,7.90752,2529.3,2528.8,6.42694]
[1724846350309,4.03270785,2529.3,2528.8,6.42694]
[1724846350679,7.90753,2529.3,2528.8,6.42694]
[1724846350885,3.95375,2529.3,2528.8,6.42694]
[1724846351888,3.95384,2529.2,2528.8,2.4725]
[1724846353074,2.43625785,2529.2,2528.6,9.8425]
[1724846353397,3.9544,2528.9,2528.6,9.8425]
[1724846354319,3.95451,2528.8,2528.6,7.37]
[1724846354609,3.95451,2528.8,2528.4,2.8685]
[1724846354809,3.95451,2528.8,2528.4,6.82356]
[1724846355323,3.95451,2528.8,2528.5,0.06909249]
[1724846356277,3.95465,2528.7,2528.5,0.06909249]
[1724846356587,3.95451,2528.8,2528.5,0.06909249]
[1724846356956,3.95425,2529.0,2528.5,0.14818474]
[1724846357093,3.95425,2529.0,2528.6,2.4725]
[1724846357291,3.95425,2529.0,2528.7,0.06908767]
[1724846357599,4.03288785,2529.2,2528.7,0.06908767]
[1724846357600,3.954,2529.1,2528.7,0.06908767]
[1724846358179,3.95343,2529.5,2529.0,3.95405]
[1724846358402,3.9532,2529.6,2529.0,0.07907222]
[1724846358607,3.95343,2529.5,2529.2,2.4725]
[1724846358796,3.9532,2529.6,2529.2,2.4725]
[1724846358977,3.9532,2529.6,2529.3,0.06934738]
[1724846359176,7.90649,2529.6,2529.3,0.06934738]
[1724846359503,7.90649,2529.6,2529.4,0.06911809]
[1724846359696,3.95336,2529.5,2529.2,2.4725]
[1724846359917,3.95336,2529.5,2529.3,0.0691205]
[1724846360088,3.95336,2529.5,2529.2,2.4725]
[1724846360290,3.95336,2529.5,2529.3,0.06893146]
[1724846360512,3.9535,2529.4,2529.0,2.4725]
[1724846360728,3.9535,2529.4,2529.1,0.06648479]
[1724846361102,3.95367,2529.3,2529.1,0.06648479]
[1724846361982,3.95381,2529.2,2529.1,0.06648479]
[1724846362189,7.90762,2529.2,2529.1,0.06648479]
[1724846362411,3.954,2529.1,2528.8,2.4331]
[1724846364137,3.95381,2529.2,2528.8,2.4331]
[1724846365404,7.90774,2529.2,2528.8,2.4331]
[1724846365809,3.95381,2529.2,2528.8,2.4331]
[1724846366015,3.95361,2529.4,2529.0,6.38722]
[1724846366196,3.95361,2529.4,2529.0,2.4331]
[1724846367017,3.95361,2529.4,2529.1,0.07907053]
[1724846367219,3.95361,2529.4,2529.0,2.51217053]
[1724846368345,3.95361,2529.4,2528.9,3.95421]
[1724846368544,3.95373,2529.3,2528.8,6.38752]
[1724846369746,7.90724,2529.4,2528.9,4.033332]
[1724846370039,3.95361,2529.4,2528.9,4.033332]
[1724846370219,3.95358,2529.4,2529.0,0.06656281]
[1724846370621,3.9538,2529.3,2529.0,0.06656281]
[1724846370821,3.9538,2529.3,2528.8,6.38752]
[1724846371143,3.954,2529.1,2528.8,2.4331]
[1724846371306,3.95421,2529.0,2528.9,0.06656522]
[1724846371921,3.95421,2529.0,2528.7,7.37]
[1724846372144,3.95421,2529.0,2528.8,0.06648256]
[1724846373056,3.95428,2528.9,2528.8,0.06648256]
[1724846373352,7.90856,2528.9,2528.8,0.06648256]
[1724846373518,7.98751785,2528.9,2528.8,0.06648256]
[1724846373836,3.95488,2528.6,2528.4,0.396]
[1724846374228,3.95491,2528.5,2528.4,0.396]
[1724846374430,3.95475,2528.6,2528.4,0.396]
[1724846374637,3.95462,2528.7,2528.4,0.396]
[1724846376323,3.95452,2528.8,2528.4,0.396]
[1724846376525,3.95489,2528.6,2528.3,2.4331]
[1724846378959,7.90909,2528.8,2528.3,2.4331]
[1724846379461,3.95462,2528.7,2528.3,2.4331]
[1724846383364,3.95431,2528.9,2528.3,2.4331]
[1724846383565,3.95431,2528.9,2528.3,6.38828]
[1724846384430,7.90868,2528.9,2528.3,6.38828]
[1724846384629,3.95431,2528.9,2528.3,6.38828]
[1724846385075,7.90869,2528.9,2528.3,6.38828]
[1724846385241,7.90869,2528.9,2528.4,0.0649075]
[1724846385441,3.95431,2528.9,2528.4,0.0649075]
[1724846385659,3.95431,2528.9,2528.5,2.4331]
[1724846386060,3.95431,2528.9,2528.6,0.06490268]
[1724846386242,3.95423,2529.0,2528.6,0.06490268]
[1724846387171,7.90846,2529.0,2528.6,0.07760988]
[1724846387339,3.95423,2529.0,2528.6,0.07760988]
[1724846387674,3.95391,2529.2,2528.6,4.11143493]
[1724846387856,7.22161194,2529.6,2528.7,6.38769]
[1724846387857,3.95365,2529.4,2528.7,6.38769]
[1724846388062,3.95365,2529.4,2528.8,0.07907747]
[1724846388261,3.95365,2529.4,2528.8,0.14376755]
[1724846388652,3.95376,2529.3,2528.8,0.14376755]
[1724846389068,3.95376,2529.3,2528.8,0.15647475]
[1724846389587,3.95376,2529.3,2528.8,0.07739728]
[1724846390082,3.95382,2529.2,2528.8,0.07739728]
[1724846391443,3.95407,2529.1,2528.8,0.07739728]
[1724846391648,3.95382,2529.2,2528.8,0.07739728]
[1724846391937,7.90777,2529.2,2528.8,0.07739728]
[1724846392170,3.95398,2529.1,2528.8,0.07739728]
[1724846393479,3.95413,2529.0,2528.8,0.07739728]
[1724846399410,7.90834,2529.0,2528.8,0.07739728]
[1724846399607,3.95428,2528.9,2528.8,0.07739728]
[1724846400414,9.66891508,2528.9,2528.8,0.07739728]
[1724846401451,7.90856,2528.9,2528.8,0.07739728]
[1724846401953,3.95428,2528.9,2528.8,0.07739728]
[1724846402743,9.66891508,2528.9,2528.8,0.07739728]
[1724846403071,12.92339037,2528.9,2528.8,0.07739728]
[1724846403634,16.87767037,2528.9,2528.8,0.07739728]
[1724846404034,19.34456387,2528.9,2528.8,0.07739728]
[1724846405783,11.16303529,2528.9,2528.8,0.07739728]
[1724846405986,3.95354,2529.4,2528.8,0.07739728]
[1724846406284,3.95382,2529.2,2528.9,2.3397]
[1724846406588,3.95382,2529.2,2528.9,2.58140973]
[1724846407245,3.95382,2529.2,2528.9,2.59411693]
[1724846408042,0.07895785,2529.4,2528.9,2.67319298]
[1724846408241,3.95368,2529.3,2529.0,0.27378831]
[1724846409252,3.95368,2529.3,2529.0,0.28649551]
[1724846409855,7.90743,2529.3,2529.0,0.28649551]
[1724846410072,3.95353,2529.4,2529.0,0.28649551]
[1724846410289,3.95344,2529.5,2529.0,0.28649551]
[1724846410446,3.95322,2529.6,2529.2,2.3397]
[1724846410645,3.95337,2529.5,2529.2,2.60231955]
[1724846410890,3.95315,2529.7,2529.2,6.37258114]
[1724846411188,3.95315,2529.7,2529.3,0.0790649]
[1724846411346,2.2797,2530.0,2529.3,0.0790649]
[1724846411347,8.17980858,2530.0,2529.3,0.0790649]
[1724846411547,3.95252,2530.1,2529.5,2.3397]
[1724846411781,3.95252,2530.1,2529.5,2.41875629]
[1724846412168,3.95217,2530.3,2529.7,3.95302]
[1724846412486,3.95226,2530.2,2529.9,2.3397]
[1724846412687,12.13164858,2530.3,2529.9,2.3397]
[1724846413002,3.95194,2530.4,2529.9,2.3397]
[1724846413151,8.17910858,2530.5,2530.0,0.07904742]
[1724846413152,3.95186,2530.5,2530.0,0.07904742]
[1724846413504,3.95186,2530.5,2530.0,0.09175462]
[1724846414080,7.90379,2530.5,2530.0,0.09175462]
[1724846414250,4.03081785,2530.5,2530.0,0.09175462]
[1724846414450,3.95186,2530.5,2530.0,0.09175462]
[1724846414694,3.95157,2530.7,2530.0,0.09175462]
[1724846414695,3.95157,2530.7,2530.0,7.99678462]
[1724846414899,4.03052785,2530.7,2530.1,3.9524]
[1724846415094,4.03052785,2530.7,2530.1,4.03143923]
[1724846415399,4.22724858,2530.8,2530.1,4.03143923]
[1724846415400,3.95136,2530.8,2530.3,2.3397]
[1724846415692,3.95136,2530.8,2530.3,2.41873147]
[1724846415898,3.95136,2530.8,2530.4,0.06296682]
[1724846416098,8.17860858,2530.8,2530.4,0.06296682]
[1724846416659,6.50694858,2530.6,2530.4,0.06296682]
[1724846416909,6.50694858,2530.6,2530.1,0.0127072]
[1724846416910,0.73754849,2530.5,2530.1,0.0127072]
[1724846417059,8.17949858,2530.2,2530.1,0.0127072]
[1724846418186,12.13174858,2530.2,2530.1,0.0127072]
[1724846419187,3.95225,2530.2,2530.1,0.0127072]
[1724846420237,12.21036643,2530.4,2530.1,0.0127072]
[1724846420449,3.9521,2530.3,2530.1,0.0127072]
[1724846420975,8.17932858,2530.4,2530.1,0.0127072]
[1724846421103,3.95204,2530.4,2530.1,0.0127072]
[1724846422005,8.17927858,2530.4,2530.1,0.0127072]
[1724846423126,8.17926858,2530.4,2530.1,0.0127072]
[1724846423329,12.13174858,2530.2,2530.1,0.0127072]
[1724846424129,8.17949858,2530.2,2530.1,0.0127072]
[1724846424467,3.95225,2530.2,2530.1,0.0127072]
[1724846424901,7.9045,2530.2,2530.1,0.0127072]
[1724846425302,3.95225,2530.2,2530.1,0.0127072]
[1724846426158,5.32461493,2530.2,2530.1,0.0127072]
[1724846426527,9.27686493,2530.2,2530.1,0.0127072]
[1724846427219,7.9045,2530.2,2530.1,0.0127072]
[1724846428586,3.95225,2530.2,2530.1,0.0127072]
[1724846431231,3.95225,2530.2,2530.1,0.07507698]
[1724846431436,4.03120785,2530.2,2530.1,0.07507698]
[1724846431752,3.95225,2530.2,2530.1,0.07507698]
[1724846434474,7.98345785,2530.2,2530.1,0.07507698]
[1724846435178,13.43177707,2530.2,2530.1,0.07507698]
[1724846435871,15.84397707,2530.2,2530.1,0.07507698]
[1724846436081,18.84397707,2530.2,2530.1,0.07507698]
[1724846436577,3.95225,2530.2,2530.1,0.07507698]
[1724846436781,12.13174858,2530.2,2530.1,0.0127072]
[1724846436962,14.54394858,2530.2,2530.1,0.0127072]
[1724846437161,17.54394858,2530.2,2530.1,0.0127072]
[1724846437463,20.83839344,2530.2,2530.1,0.0127072]
[1724846437646,23.25059344,2530.2,2530.1,0.0127072]
[1724846437850,27.20284344,2530.2,2530.1,0.0127072]
[1724846438053,7.90762,2529.2,2529.1,0.396]
[1724846438380,8.698382,2529.2,2529.1,0.396]
[1724846438581,8.698382,2529.2,2528.8,2.3026]
[1724846438582,3.95407,2529.1,2528.9,0.396]
[1724846438877,3.95413,2529.0,2528.9,0.396]
[1724846439579,3.95406,2529.1,2528.8,2.3026]
[1724846439745,7.90773,2529.2,2528.8,2.53286]
[1724846439944,3.95381,2529.2,2528.8,2.53286]
[1724846440553,3.95362,2529.4,2528.9,0.07908085]
[1724846440851,3.95368,2529.3,2528.9,0.253286]
[1724846441254,4.03257785,2529.4,2528.9,0.253286]
[1724846441476,3.95327,2529.6,2529.0,0.079075]
[1724846441477,7.9066,2529.6,2529.0,0.079075]
[1724846441683,3.95285,2529.9,2529.3,3.95365]
[1724846441838,3.95285,2529.9,2529.4,2.3026]
[1724846442043,3.95285,2529.9,2529.5,0.07906302]
[1724846442267,3.95285,2529.9,2529.4,2.3026]
[1724846442268,3.95284,2529.9,2529.4,2.3026]
[1724846442642,3.95284,2529.9,2529.4,2.38165739]
[1724846443142,3.95281,2529.9,2529.4,2.38165739]
[1724846443443,8.18005858,2529.9,2529.4,2.3026]
[1724846443700,3.95296,2529.8,2529.4,2.3026]
[1724846444041,12.13290858,2529.9,2529.4,2.3026]
[1724846444245,8.18005858,2529.9,2529.4,2.38165744]
[1724846444443,3.95281,2529.9,2529.4,6.33513744]
[1724846445140,3.95266,2530.0,2529.4,6.33513744]
[1724846445791,3.95291,2529.8,2529.4,2.3026]
[1724846446084,0.07895785,2530.0,2529.1,6.25647]
[1724846446085,3.95327,2529.6,2529.1,6.25647]
[1724846446286,3.95345,2529.5,2529.1,2.3026]
[1724846446459,3.95353,2529.4,2529.2,0.0625802]
[1724846446651,3.95327,2529.6,2529.2,0.0625802]
[1724846446870,7.90655,2529.6,2529.2,0.29909822]
[1724846447062,3.95327,2529.6,2529.2,0.37816517]
[1724846447272,3.95327,2529.6,2529.2,0.29909822]
[1724846447594,3.95327,2529.6,2529.2,0.37816515]
[1724846448137,7.98494785,2529.8,2529.2,0.37816515]
[1724846448376,3.95265,2530.0,2529.4,3.9534]
[1724846448582,3.9528,2529.9,2529.5,0.0790576]
[1724846448741,3.9528,2529.9,2529.5,0.14205534]
[1724846449376,3.95292,2529.8,2529.5,0.06299774]
[1724846449583,3.95303,2529.7,2529.5,0.06299774]
[1724846450089,3.95319,2529.6,2529.5,0.06299774]
[1724846450260,3.9536,2529.4,2529.0,2.3026]
[1724846450878,3.95398,2529.1,2528.9,7.37]
[1724846451108,3.95398,2529.1,2528.7,2.3026]
[1724846451697,3.95398,2529.1,2527.6,6.30535092]
[1724846451698,3.95468,2528.7,2528.1,3.95544]
[1724846452008,3.95499,2528.5,2527.9,6.25831]
[1724846452179,3.95473,2528.7,2528.1,3.95553]
[1724846452512,3.95473,2528.7,2528.1,7.91106]
[1724846452806,3.9547,2528.7,2528.2,4.03446656]
[1724846453111,3.9547,2528.7,2528.2,0.07909656]
[1724846453467,3.9547,2528.7,2528.1,8.30687]
[1724846453468,7.90938,2528.7,2528.1,4.35143]
[1724846453706,3.95477,2528.6,2528.1,4.35143]
[1724846453866,3.95468,2528.7,2528.1,4.35143]
[1724846454066,7.90938,2528.7,2528.1,4.35143]
[1724846454296,3.9548,2528.6,2528.1,4.35143]
[1724846454684,3.95522,2528.3,2528.0,0.396]
[1724846454873,3.95522,2528.3,2527.9,2.3026]
[1724846455717,4.22724858,2528.0,2527.6,0.1230155]
[1724846455883,4.22724858,2527.7,2527.6,0.1230155]
[1724846456072,8.18288858,2528.1,2527.6,0.1230155]
[1724846456271,3.95586,2527.9,2527.6,0.1230155]
[1724846456575,4.22724858,2527.8,2527.6,0.1230155]
[1724846456775,3.95616,2527.7,2527.6,0.1230155]
[1724846457220,4.03511785,2527.7,2527.6,0.1230155]
[1724846457385,7.99127785,2527.7,2527.6,0.1230155]
[1724846457908,9.21313049,2527.7,2527.6,0.1230155]
[1724846459170,9.21313049,2527.7,2527.6,0.18866588]
[1724846459371,9.21313049,2527.7,2527.6,0.1230155]
[1724846459770,9.21313049,2527.7,2527.6,0.18866588]
[1724846460583,4.03511785,2527.7,2527.6,0.18866588]
[1724846461274,7.99127785,2527.7,2527.6,0.18866588]
[1724846462011,4.03511785,2527.7,2527.6,0.18866588]
[1724846464308,0.07895785,2527.7,2527.6,0.18866588]
[1724846464832,4.22724858,2527.8,2527.6,0.18866588]
[1724846467294,4.22724858,2527.8,2527.6,2.67666588]
[1724846467736,8.18272858,2528.2,2527.7,3.95616]
[1724846467939,4.22724858,2528.2,2527.7,3.95616]
[1724846468101,8.26160643,2528.2,2527.8,0.06594807]
[1724846468298,4.22724858,2528.0,2527.8,0.06594807]
[1724846468522,4.22724858,2528.0,2527.6,6.5673055]
[1724846468727,4.22724858,2528.0,2527.9,0.06569987]
[1724846468926,4.22724858,2528.0,2527.7,3.95612]
[1724846469239,4.22724858,2528.0,2527.8,0.06616533]
[1724846469891,3.95585,2527.9,2527.6,2.6110155]
[1724846470029,4.03480785,2527.9,2527.6,0.1230155]
[1724846470522,3.95585,2527.9,2527.6,0.1230155]
[1724846470728,4.22724858,2528.0,2527.6,0.1230155]
[1724846470934,8.18269858,2528.2,2527.6,4.0792455]
[1724846471095,0.07895785,2528.1,2527.6,4.0792455]
[1724846471550,0.07895785,2528.1,2527.7,4.03518541]
[1724846471839,4.22724858,2528.2,2527.8,2.488]
[1724846472000,4.22724858,2528.4,2527.9,3.95584]
[1724846472205,4.30620643,2528.4,2527.9,3.95584]
[1724846472426,4.30620643,2528.4,2527.9,7.91151]
[1724846472617,8.26130643,2528.4,2527.9,3.95575]
[1724846473025,4.30620643,2528.4,2527.9,3.95575]
[1724846473227,0.07895785,2528.6,2528.0,0.07910948]
[1724846473541,4.22724858,2529.0,2528.5,6.44289]
[1724846473762,2.44685785,2529.2,2528.6,0.07908815]
[1724846473763,4.22724858,2529.2,2528.6,0.07908815]
[1724846473907,8.18087858,2529.4,2528.8,3.95442]
[1724846474244,4.22724858,2529.2,2528.6,4.21134881]
[1724846474558,4.22724858,2529.2,2528.6,3.95464]
[1724846474721,4.30620643,2529.2,2528.6,3.95464]
[1724846474907,8.18142858,2529.0,2528.5,2.488]
[1724846475108,4.22724858,2528.8,2528.4,7.37]
[1724846475325,0.07895785,2528.7,2528.4,7.37]
[1724846475553,3.95479,2528.6,2528.4,7.37]
[1724846475724,3.95479,2528.6,2528.1,6.4435]
[1724846476253,3.95479,2528.6,2528.2,0.06584381]
[1724846476750,0.07895785,2528.7,2528.2,4.02121381]
[1724846477121,4.22724858,2528.8,2528.3,3.95516]
[1724846477320,4.22724858,2528.8,2528.3,4.02100141]
[1724846477523,4.22724858,2528.8,2528.4,3.95495]
[1724846477744,4.22724858,2528.8,2528.4,4.020789]
[1724846480667,3.95437,2528.9,2528.4,4.020789]
[1724846480819,4.03332785,2528.9,2528.4,4.020789]
[1724846481015,4.03332785,2528.9,2528.4,0.065839]
[1724846481229,4.03332785,2528.9,2528.3,3.9552]
[1724846481431,4.03332785,2528.9,2528.2,3.95533]
[1724846481432,3.95463,2528.7,2528.4,0.0652342]
[1724846481667,4.03358785,2528.7,2528.1,6.44344]
[1724846481962,4.03358785,2528.7,2528.5,0.06523179]
[1724846482166,4.03358785,2528.7,2528.1,2.488]
[1724846482384,4.03350785,2528.8,2528.6,0.06522938]
[1724846482529,4.03350785,2528.8,2528.2,3.95535]
[1724846482732,4.03350785,2528.8,2528.7,0.06497186]
[1724846482961,7.98808785,2528.8,2528.2,3.9553]
[1724846483168,4.03350785,2528.8,2528.7,0.06497186]
[1724846483363,3.95455,2528.8,2528.2,7.91058]
[1724846483574,3.95455,2528.8,2528.7,0.06497186]
[1724846483880,3.95455,2528.8,2528.7,0.06502854]
[1724846484053,3.95453,2528.8,2528.2,3.95529]
[1724846484376,3.95453,2528.8,2528.7,0.06502854]
[1724846484530,5.01739364,2528.8,2528.2,3.95529]
[1724846484932,3.95462,2528.7,2528.2,3.95529]
[1724846485085,3.95462,2528.7,2528.3,0.06503817]
[1724846485576,3.95462,2528.7,2528.2,3.95529]
[1724846485754,3.95462,2528.7,2528.4,0.06497908]
[1724846486079,3.95462,2528.7,2528.5,0.06497667]
[1724846486244,3.95462,2528.7,2528.2,3.95529]
[1724846486450,3.95462,2528.7,2528.6,0.06497426]
[1724846486781,3.95462,2528.7,2528.2,3.95529]
[1724846486943,3.95462,2528.7,2528.6,0.06497426]
[1724846487145,3.95462,2528.7,2528.2,3.95529]
[1724846487345,3.95462,2528.7,2528.6,0.06497426]
[1724846487981,3.95462,2528.7,2528.2,3.95529]
[1724846488140,3.95477,2528.6,2528.1,6.44351]
[1724846489482,7.90964,2528.6,2528.1,6.44351]
[1724846489656,3.95477,2528.6,2528.1,6.44351]
[1724846490042,7.90961,2528.6,2528.1,6.44351]
[1724846490236,3.95477,2528.6,2528.1,6.44351]
[1724846490746,4.03350785,2528.8,2528.2,3.95535]
[1724846491084,7.90912,2528.8,2528.2,7.91064]
[1724846491241,3.95461,2528.7,2528.3,0.06507596]
[1724846491442,3.95486,2528.6,2528.1,3.95552]
[1724846491643,3.95486,2528.6,2528.2,0.06506892]
[1724846491843,3.95508,2528.4,2528.2,0.06506892]
[1724846492082,3.95522,2528.3,2528.0,7.37]
[1724846492286,6.31928,2528.4,2528.0,7.37]
[1724846492287,6.31928,2528.4,2528.3,0.06289733]
[1724846492586,6.31907,2528.6,2528.1,4.0346343]
[1724846492888,3.95454,2528.8,2528.3,3.95521]
[1724846493087,3.95454,2528.8,2528.3,7.91034]
[1724846493261,3.95454,2528.8,2528.4,0.06301775]
[1724846494656,4.03349785,2528.8,2528.4,0.06301775]
[1724846495496,3.95462,2528.7,2528.4,0.06301775]
[1724846496205,3.95444,2528.8,2528.4,0.06301775]
[1724846497903,10.54576858,2528.9,2528.4,4.01807775]
[1724846498076,8.18132858,2529.1,2528.4,6.36247775]
[1724846498281,4.22724858,2529.1,2528.6,3.95465]
[1724846498594,4.30620643,2529.1,2528.7,3.95459]
[1724846498791,3.95382,2529.2,2528.7,4.01760052]
[1724846498990,4.03277785,2529.2,2528.7,4.01760052]
[1724846499396,0.07895785,2529.2,2528.7,4.01760052]
[1724846499711,0.07895785,2529.2,2528.8,3.95443]
[1724846500006,4.22724858,2529.3,2528.9,3.95421]
[1724846500208,4.30620643,2529.3,2528.9,3.95421]
[1724846500700,4.30620643,2529.3,2529.0,0.06280489]
[1724846501272,0.53966294,2530.1,2529.1,2.3444]
[1724846501614,2.3642,2531.0,2530.0,8.17970858]
[1724846501812,3.95182,2530.5,2529.9,3.95269]
[1724846501968,6.31626,2530.4,2530.1,0.06262728]
[1724846502275,6.31626,2530.4,2529.6,7.9062]
[1724846502276,10.26834,2530.4,2529.7,3.95301]
[1724846502485,7.80533616,2530.4,2529.8,3.95278]
[1724846502795,7.80531616,2530.4,2529.8,3.95278]
[1724846503114,3.95238,2530.2,2529.6,3.95313]
[1724846503294,3.95238,2530.2,2529.6,7.90622]
[1724846503502,3.95238,2530.2,2529.7,3.95302]
[1724846505772,0.82004892,2530.3,2529.8,3.95286]